bitfinex-derivatives/quotes_ETHF0:USTF0_20250911
["timestamp","ask_amount","ask_price","bid_price","bid_amount"]
[1757620633438,0.7057,4424.3,4424.2,0.7277]
[1757620634830,0.2003,4424.3,4424.2,0.7277]
[1757620636036,0.5081,4424.3,4424.2,0.7277]
[1757620636236,0.7057,4424.3,4424.2,0.7277]
[1757620638937,0.7057,4424.3,4424.2,0.5172]
[1757620639535,0.7057,4424.3,4424.2,0.7277]
[1757620640333,0.7057,4424.7,4424.6,0.7277]
[1757620645235,0.3078,4426.0,4425.4,0.4096]
[1757620645541,0.829,4426.0,4425.9,0.7277]
[1757620646337,0.7057,4426.0,4425.9,0.7277]
[1757620647130,0.2003,4426.5,4426.4,0.7277]
[1757620647327,0.3979,4426.5,4426.4,0.7277]
[1757620647634,0.7139,4426.5,4426.4,0.7277]
[1757620649440,0.8499,4427.0,4426.9,0.2015]
[1757620649643,0.7266,4427.0,4426.9,0.7014]
[1757620650240,0.316,4427.9,4427.1,0.3003]
[1757620650436,0.54187001,4427.9,4427.1,0.3003]
[1757620650643,0.7266,4427.2,4426.6,0.3003]
[1757620651438,0.2099,4426.1,4426.0,0.5237]
[1757620651633,0.316,4426.3,4426.0,0.5237]
[1757620651934,0.316,4426.9,4426.1,0.3003]
[1757620652446,0.7266,4426.9,4426.8,0.2015]
[1757620654745,0.7266,4426.9,4426.8,0.7014]
[1757620656646,0.7266,4426.9,4426.8,0.2015]
[1757620666958,0.7266,4426.9,4426.6,0.3003]
[1757620667461,0.7266,4426.9,4426.0,0.1226]
[1757620667755,0.123,4427.0,4426.2,0.5018]
[1757620667756,0.7266,4426.3,4426.2,0.5018]
[1757620667960,0.316,4426.2,4425.7,0.3003]
[1757620668257,0.5259,4425.8,4425.7,0.7014]
[1757620668455,0.2099,4425.8,4425.7,0.7014]
[1757620668961,0.316,4426.1,4425.7,0.7014]
[1757620669259,0.5259,4426.1,4426.0,0.8184]
[1757620669459,0.7266,4426.1,4426.0,0.8184]
[1757620671051,0.7266,4426.1,4426.0,0.7014]
[1757620672553,0.7266,4426.1,4426.0,0.8184]
[1757620672753,0.5259,4426.9,4426.1,0.3003]
[1757620672956,0.7266,4426.9,4426.8,0.7014]
[1757620674363,0.7266,4426.9,4426.1,0.3003]
[1757620675059,0.7266,4426.2,4426.1,0.5018]
[1757620675250,0.7266,4426.2,4426.1,0.7014]
[1757620680868,0.3144,4426.1,4425.6,2.02037408]
[1757620681070,0.715,4425.8,4425.7,0.503]
[1757620681567,0.715,4425.8,4425.7,0.7079]
[1757620686271,0.3144,4426.2,4425.7,0.7079]
[1757620686469,0.715,4426.4,4426.3,0.7079]
[1757620686868,0.3144,4426.7,4426.3,0.7079]
[1757620687174,0.5156,4426.7,4426.6,0.7079]
[1757620689367,0.715,4426.7,4426.6,0.7079]
[1757620693068,0.3144,4426.9,4426.6,0.7079]
[1757620693274,0.715,4427.3,4427.2,0.7079]
[1757620696973,0.715,4427.3,4426.6,0.2934]
[1757620700879,0.715,4427.3,4427.2,0.2096]
[1757620701083,0.715,4427.3,4427.2,0.503]
[1757620703483,0.715,4427.3,4426.6,0.2934]
[1757620704487,0.715,4426.2,4426.1,0.7079]
[1757620705287,0.715,4426.2,4425.6,0.2934]
[1757620705288,0.3144,4426.1,4425.6,0.2934]
[1757620705483,0.715,4425.7,4425.6,0.7079]
[1757620707385,0.715,4425.7,4425.6,0.2096]
[1757620707582,0.715,4425.7,4425.6,0.5295]
[1757620707898,0.715,4425.7,4425.6,0.7428]
[1757620708490,0.5026,4425.7,4425.6,0.7428]
[1757620710486,0.3014,4425.9,4425.6,0.7428]
[1757620710687,0.7022,4426.4,4426.3,0.1945]
[1757620710982,0.7022,4426.4,4426.3,0.7277]
[1757620715693,0.3014,4425.9,4425.1,2.02037408]
[1757620715900,0.7022,4425.9,4425.8,0.7277]
[1757620716093,0.7022,4425.9,4425.2,0.22596]
[1757620716391,0.7022,4425.9,4425.8,0.5144]
[1757620719191,0.7022,4425.9,4425.0,2.14257408]
[1757620719395,0.7022,4425.2,4425.1,0.1945]
[1757620719694,0.7022,4425.2,4424.8,0.3199]
[1757620720999,0.7022,4425.2,4424.6,0.3199]
[1757620726702,0.7022,4424.7,4424.6,0.5144]
[1757620727198,0.7022,4424.7,4424.6,0.7277]
[1757620727701,0.7022,4424.7,4424.6,0.5144]
[1757620730005,0.7022,4424.7,4424.6,0.7277]
[1757620730703,0.3014,4425.4,4424.7,0.3199]
[1757620731006,0.7022,4425.4,4425.3,0.5144]
[1757620731408,0.7022,4425.4,4425.0,0.3199]
[1757620731800,0.7022,4425.4,4424.5,0.1266]
[1757620731999,0.7022,4425.4,4424.6,0.3199]
[1757620734004,0.129,4425.5,4424.6,0.3199]
[1757620734005,0.7022,4424.7,4424.6,0.5144]
[1757620735908,0.7022,4424.7,4424.6,0.7277]
[1757620739917,0.2259,4424.8,4424.6,0.7277]
[1757620740217,0.2259,4424.8,4424.7,0.3073]
[1757620740412,0.2259,4424.8,4424.7,0.7204]
[1757620742514,0.2044,4425.5,4425.4,0.7204]
[1757620742819,0.8376,4425.5,4425.1,0.3073]
[1757620743019,0.8376,4425.5,4424.6,0.3073]
[1757620743214,0.4163,4424.7,4424.6,0.7204]
[1757620743416,0.2951,4425.3,4424.7,0.3073]
[1757620743916,0.7114,4425.3,4425.2,0.2072]
[1757620744117,0.2951,4426.4,4425.6,0.4131]
[1757620744323,0.4995,4425.8,4425.7,0.7204]
[1757620745014,0.1228,4426.5,4425.7,0.4131]
[1757620745015,0.2951,4426.4,4425.7,0.4131]
[1757620745214,0.2044,4426.4,4426.3,0.7204]
[1757620745817,0.1942,4427.5,4427.3,0.2072]
[1757620745818,0.4995,4427.4,4427.3,0.2072]
[1757620746013,0.7114,4427.4,4427.3,0.7204]
[1757620746215,0.2951,4428.4,4427.6,0.3073]
[1757620746414,0.7114,4428.4,4428.3,0.7204]
[1757620747017,0.4163,4428.4,4428.3,0.7204]
[1757620747216,0.2951,4428.7,4428.4,0.3073]
[1757620747417,0.7114,4428.7,4428.6,0.4131]
[1757620747719,0.7114,4428.7,4428.6,0.7204]
[1757620748122,0.2951,4429.9,4429.1,0.3073]
[1757620748426,0.7114,4429.9,4429.0,0.1282]
[1757620748619,0.1262,4429.5,4428.5,0.1282]
[1757620748819,0.7114,4428.7,4428.6,0.7204]
[1757620749325,0.7114,4428.7,4428.1,0.3073]
[1757620749827,0.7114,4428.7,4428.6,0.2072]
[1757620750029,0.7114,4428.7,4428.6,0.5145]
[1757620753418,0.7114,4428.7,4428.0,0.1282]
[1757620753624,0.7114,4428.7,4428.6,0.7204]
[1757620753821,0.4163,4428.7,4428.6,0.7204]
[1757620754223,0.7114,4428.7,4428.6,0.7204]
[1757620755521,0.1262,4429.5,4428.7,0.3073]
[1757620755721,0.52088,4429.4,4428.7,0.3073]
[1757620755921,0.7114,4429.4,4429.3,0.2072]
[1757620756121,0.7114,4429.4,4428.6,0.3073]
[1757620756631,0.7114,4428.7,4428.6,0.5145]
[1757620757228,0.7114,4428.7,4428.2,0.3073]
[1757620757434,0.7114,4428.0,4427.9,32.8533]
[1757620757627,0.2044,4428.0,4427.9,33.0813]
[1757620758533,0.7114,4428.3,4428.2,0.7204]
[1757620758929,0.2951,4428.8,4428.3,0.3073]
[1757620759129,0.4163,4428.8,4428.7,0.2072]
[1757620759322,0.7114,4428.8,4428.7,0.5145]
[1757620760128,0.1262,4429.5,4428.8,0.3073]
[1757620760336,0.2951,4429.4,4428.9,0.3073]
[1757620760528,0.7114,4429.4,4429.3,0.7204]
[1757620760831,0.7114,4429.4,4429.3,0.2072]
[1757620761231,0.7114,4429.4,4429.3,0.5145]
[1757620761429,0.7114,4428.6,4428.5,0.7204]
[1757620761626,0.1262,4429.5,4428.5,0.5413]
[1757620761827,0.1262,4429.5,4428.6,0.3073]
[1757620761828,0.2951,4429.4,4428.6,0.3073]
[1757620762028,0.7114,4429.4,4429.3,0.5145]
[1757620762229,0.7114,4429.4,4429.3,0.7204]
[1757620764833,0.7114,4429.4,4428.8,0.3073]
[1757620765136,0.1262,4430.5,4429.3,0.4131]
[1757620765430,0.7114,4429.9,4429.8,0.7204]
[1757620765625,0.7114,4429.9,4429.8,0.2072]
[1757620765831,0.7114,4429.9,4429.1,0.3073]
[1757620766032,0.7114,4429.2,4429.1,0.5145]
[1757620766335,0.7114,4429.2,4429.1,0.7204]
[1757620767133,0.2044,4429.2,4429.1,0.7204]
[1757620767837,0.4998,4429.2,4429.1,0.7204]
[1757620768135,0.1262,4430.5,4429.1,0.4131]
[1757620768434,0.7098,4429.3,4429.2,0.7178]
[1757620770338,0.5094,4429.9,4429.6,0.3125]
[1757620770534,0.5094,4429.9,4429.5,0.128]
[1757620770535,0.5094,4429.9,4429.8,0.7178]
[1757620770734,0.7098,4429.9,4429.8,0.7178]
[1757620771335,0.7098,4429.9,4429.4,0.3125]
[1757620771538,0.7098,4429.9,4429.8,0.1958]
[1757620771740,1.28320265,4429.9,4429.8,0.5083]
[1757620771937,1.28320265,4429.9,4429.1,0.3125]
[1757620772131,0.4144,4429.9,4429.1,0.228]
[1757620772332,1.28387272,4429.8,4429.7,0.1958]
[1757620772532,1.28387272,4429.8,4429.7,0.5083]
[1757620773139,1.28387272,4429.8,4429.0,0.3352]
[1757620773444,0.98847272,4429.7,4429.6,0.1958]
[1757620773629,0.98847272,4429.7,4429.6,0.5083]
[1757620773934,1.28387272,4429.7,4429.6,0.5083]
[1757620774134,1.28387272,4429.7,4429.0,0.3352]
[1757620774334,1.28387272,4429.6,4429.5,0.5083]
[1757620774639,1.28387272,4429.6,4429.5,0.7178]
[1757620775136,1.28387272,4429.6,4429.1,0.3125]
[1757620775334,0.7098,4429.2,4429.1,0.9458]
[1757620775535,1.28629482,4429.2,4429.1,0.9458]
[1757620776027,0.57649482,4429.2,4429.1,0.9458]
[1757620776231,0.79049482,4429.2,4429.1,0.7178]
[1757620776729,0.57649482,4429.2,4429.1,0.7178]
[1757620777339,1.28629482,4429.2,4429.1,0.7178]
[1757620777733,0.99089482,4429.2,4429.1,0.1958]
[1757620777930,0.99089482,4429.2,4429.1,0.7178]
[1757620778341,1.28629482,4429.2,4429.1,0.7178]
[1757620779037,0.99089482,4429.2,4429.1,0.7178]
[1757620779239,1.28629482,4429.2,4428.0,0.1282]
[1757620779432,0.7098,4428.6,4428.5,0.5083]
[1757620779739,1.28629482,4428.6,4428.5,0.7178]
[1757620780230,0.4144,4428.2,4428.1,0.7178]
[1757620780539,0.7098,4427.8,4427.7,0.7178]
[1757620780840,1.28629482,4427.8,4427.7,0.7178]
[1757620781140,0.7098,4427.8,4427.7,0.7178]
[1757620781335,0.7098,4427.8,4427.4,0.228]
[1757620781336,0.7098,4427.1,4427.0,0.7178]
[1757620781532,1.28674234,4427.1,4427.0,0.7178]
[1757620781732,1.28674234,4427.1,4427.0,0.1958]
[1757620782140,1.28674234,4427.1,4427.0,0.7178]
[1757620782340,0.214,4427.1,4427.0,0.8458]
[1757620782531,0.1202,4428.0,4427.0,0.5333]
[1757620782728,0.87184725,4427.9,4427.1,0.3125]
[1757620782933,0.2954,4427.7,4427.1,0.3125]
[1757620783240,1.28624725,4427.6,4427.0,0.4405]
[1757620783543,0.7098,4427.1,4427.0,0.7178]
[1757620783842,0.7098,4427.1,4426.0,0.5333]
[1757620783843,0.214,4426.1,4426.0,0.5333]
[1757620784042,0.5094,4426.1,4426.0,0.7613]
[1757620784236,0.214,4426.1,4426.0,1.0738]
[1757620784538,0.7098,4426.1,4426.0,0.8458]
[1757620784734,0.7098,4426.1,4426.0,0.1958]
[1757620785632,0.7098,4426.1,4425.7,0.3125]
[1757620785842,0.214,4425.3,4425.2,0.9468]
[1757620786341,0.7098,4425.3,4425.2,0.1958]
[1757620786542,0.7098,4425.3,4424.9,0.3125]
[1757620786742,0.7098,4425.3,4424.6,0.3125]
[1757620787038,0.7098,4425.3,4424.7,0.3125]
[1757620787438,0.214,4424.4,4424.3,0.7178]
[1757620787939,0.7098,4424.4,4424.3,0.7178]
[1757620789343,0.7098,4424.4,4423.9,0.5415]
[1757620789636,0.7098,4424.3,4424.2,0.5083]
[1757620789843,0.7098,4424.3,4423.9,0.229]
[1757620789844,0.7098,4424.8,4424.7,0.4053]
[1757620790144,0.7098,4424.8,4424.1,0.3125]
[1757620790842,0.7098,4424.0,4423.9,0.7373]
[1757620791140,0.214,4424.1,4424.0,0.128]
[1757620791338,0.214,4424.1,4424.0,0.8458]
[1757620792430,0.7098,4424.9,4424.8,0.1958]
[1757620792635,0.7098,4424.9,4424.8,0.5083]
[1757620792841,0.7098,4424.9,4424.8,0.7178]
[1757620793236,0.4144,4424.9,4424.8,0.7178]
[1757620794046,0.7098,4424.9,4424.8,0.7178]
[1757620795346,0.2954,4425.5,4425.0,0.128]
[1757620795640,0.83,4425.0,4424.6,0.3125]
[1757620795847,0.83,4425.0,4424.1,0.3125]
[1757620797638,0.214,4425.0,4424.9,0.7137]
[1757620797843,0.8485,4425.5,4425.4,0.2041]
[1757620798443,0.7283,4425.5,4425.4,0.722]
[1757620798952,0.3152,4426.4,4425.4,0.4018]
[1757620799151,0.3152,4426.4,4425.6,0.3202]
[1757620799444,0.3152,4426.4,4425.0,0.2569]
[1757620799445,32.542,4428.0,4425.0,0.35795]
[1757620799648,1.02524827,4427.9,4425.0,0.132]
[1757620799850,0.79624827,4427.8,4425.0,0.132]
[1757620800151,0.57033827,4427.7,4425.3,0.40665]
[1757620800444,0.22592,4427.7,4425.1,0.40666]
[1757620800637,0.229,4427.9,4425.2,0.40666]
[1757620800836,0.79627715,4427.8,4425.1,0.40666]
[1757620801039,0.79627715,4427.7,4425.0,0.40667]
[1757620801239,0.229,4427.9,4424.7,0.17789767]
[1757620801240,0.57059657,4427.6,4424.7,0.17789767]
[1757620801440,0.5706186,4427.5,4424.8,0.01]
[1757620801640,0.22592,4427.8,4424.8,0.01]
[1757620801947,0.79656221,4427.7,4424.8,0.41669]
[1757620802248,0.57064221,4427.6,4424.8,0.01]
[1757620802450,0.57064221,4427.5,4424.8,0.01]
[1757620802641,0.22592,4427.7,4424.8,0.01]
[1757620802842,0.57087277,4427.6,4424.8,0.41669]
[1757620803046,0.57087277,4427.5,4424.8,0.41669]
[1757620803353,0.57087277,4427.4,4424.2,0.18395806]
[1757620803651,0.229,4427.9,4423.9,1.01693]
[1757620803652,0.57087277,4427.3,4424.6,0.40671]
[1757620803859,0.60387277,4427.2,4424.6,0.40671]
[1757620804153,0.57128397,4427.1,4424.8,0.40669]
[1757620804352,0.54116,4427.1,4425.0,0.1249]
[1757620804552,0.7283,4425.2,4425.1,0.2041]
[1757620804849,0.3152,4425.1,4424.6,0.3202]
[1757620805055,0.7283,4424.7,4424.6,0.722]
[1757620805346,0.1294,4425.5,4424.6,0.722]
[1757620805347,0.3152,4425.1,4424.7,0.3202]
[1757620805543,0.1294,4425.5,4425.4,0.2041]
[1757620805544,0.5425,4425.5,4425.4,0.2041]
[1757620805746,0.5425,4425.5,4424.6,0.3202]
[1757620805953,0.1294,4425.0,4424.3,0.088]
[1757620806153,0.5232,4424.4,4424.3,0.722]
[1757620806354,0.7283,4424.4,4424.3,0.722]
[1757620807249,0.7283,4424.4,4424.3,0.2041]
[1757620807441,0.7283,4424.4,4424.0,0.3202]
[1757620807857,0.7283,4424.3,4424.2,0.2041]
[1757620809163,0.7283,4424.3,4424.2,0.722]
[1757620810356,0.3152,4424.6,4424.3,0.3202]
[1757620810657,0.7283,4424.6,4424.5,0.722]
[1757620810950,0.106,4425.4,4424.6,0.3202]
[1757620810951,0.3152,4425.4,4424.6,0.3202]
[1757620811148,0.7283,4425.4,4425.3,0.2041]
[1757620811347,1.30353742,4425.4,4425.0,0.3202]
[1757620811554,0.7283,4425.1,4425.0,0.5243]
[1757620811755,0.7283,4425.1,4425.0,0.722]
[1757620812655,0.7283,4425.1,4424.5,0.1249]
[1757620812656,0.4131,4425.1,4424.5,0.1249]
[1757620812954,0.7283,4424.7,4424.6,0.722]
[1757620813256,0.4131,4424.7,4424.6,0.722]
[1757620813445,0.4131,4424.7,4424.6,0.2041]
[1757620813446,0.7283,4424.7,4424.6,0.2041]
[1757620813758,0.3152,4424.4,4423.6,0.229]
[1757620814061,0.7283,4424.4,4424.3,0.2041]
[1757620814252,0.7283,4424.4,4424.3,0.5243]
[1757620815360,0.208,4424.7,4424.6,0.722]
[1757620815654,0.7283,4424.7,4424.6,0.722]
[1757620816358,0.208,4424.7,4424.6,0.722]
[1757620816758,0.4131,4425.1,4425.0,0.4018]
[1757620816957,0.7283,4425.1,4425.0,0.722]
[1757620817258,1.30501303,4425.1,4425.0,0.722]
[1757620817955,1.30501303,4425.1,4425.0,0.2041]
[1757620820164,1.30501303,4425.1,4425.0,0.5243]
[1757620820357,1.30501303,4425.1,4425.0,0.722]
[1757620820560,0.57671303,4425.1,4425.0,0.8469]
[1757620820861,0.208,4425.2,4425.1,0.722]
[1757620821160,0.7283,4425.2,4424.5,0.1249]
[1757620821459,0.7283,4425.2,4424.6,0.3202]
[1757620822261,0.7283,4425.2,4425.1,0.2041]
[1757620822460,1.30509677,4425.2,4425.1,0.5243]
[1757620822661,0.7283,4425.2,4425.1,0.722]
[1757620824064,0.7283,4425.2,4425.1,0.2041]
[1757620824256,1.3051122,4425.2,4424.6,0.3202]
[1757620824458,0.7283,4425.2,4424.6,0.3202]
[1757620824753,0.57682874,4425.1,4424.6,0.3202]
[1757620824959,0.7283,4425.2,4424.6,0.3202]
[1757620825359,0.1294,4425.5,4424.6,0.3202]
[1757620825360,0.7283,4424.7,4424.6,0.3202]
[1757620825563,0.7283,4424.7,4424.6,0.5243]
[1757620826465,0.7283,4424.7,4424.6,0.722]
[1757620827563,0.4131,4424.7,4424.6,0.722]
[1757620827753,0.305,4425.0,4424.7,0.3122]
[1757620828067,0.4004,4425.0,4424.9,0.7281]
[1757620828567,0.7054,4425.0,4424.9,0.7281]
[1757620829659,0.1294,4425.5,4424.9,0.4159]
[1757620829869,0.7054,4425.6,4425.5,0.847]
[1757620830672,0.7054,4425.6,4425.5,0.7281]
[1757620834466,0.305,4426.0,4425.5,0.847]
[1757620834765,0.4004,4426.5,4426.4,0.4159]
[1757620834974,0.7054,4426.5,4426.4,0.7281]
[1757620835170,1.28244762,4426.5,4426.4,0.7281]
[1757620835569,1.40104762,4426.5,4426.4,0.7281]
[1757620835779,0.824,4426.5,4426.4,0.7281]
[1757620836975,0.824,4426.5,4426.4,0.215]
[1757620838176,0.824,4426.5,4426.1,0.3122]
[1757620839383,0.824,4426.5,4426.4,0.5272]
[1757620839782,0.824,4426.5,4425.6,0.22593999]
[1757620839783,0.824,4426.5,4425.6,0.3122]
[1757620841784,0.305,4425.6,4425.5,0.215]
[1757620842086,0.7054,4425.6,4425.5,0.5272]
[1757620843175,0.2045,4425.6,4425.5,0.847]
[1757620843376,0.7054,4425.6,4425.5,0.7281]
[1757620843778,0.7054,4425.6,4425.5,0.847]
[1757620844776,0.4004,4425.6,4425.5,0.847]
[1757620845289,0.7054,4425.6,4425.5,0.5272]
[1757620845486,0.7054,4425.6,4425.5,0.215]
[1757620845992,0.7054,4425.6,4425.5,0.5272]
[1757620846391,0.7054,4425.6,4425.5,0.7281]
[1757620847189,0.7054,4425.6,4425.5,0.215]
[1757620847795,0.7054,4425.6,4425.5,0.5272]
[1757620848092,0.7054,4425.6,4425.5,0.7281]
[1757620848490,0.2045,4425.6,4425.5,0.847]
[1757620849091,0.7054,4425.6,4425.0,0.1189]
[1757620849292,0.7054,4424.7,4424.6,0.4159]
[1757620849781,0.7054,4424.7,4424.6,0.7281]
[1757620852891,0.7054,4424.7,4424.6,0.215]
[1757620853892,0.7054,4424.7,4423.5,0.3479]
[1757620853893,0.7054,4424.1,4424.0,0.4159]
[1757620854093,0.7054,4424.1,4424.0,0.215]
[1757620855493,0.7054,4424.1,4424.0,0.5272]
[1757620855695,0.7054,4424.1,4424.0,0.215]
[1757620856390,0.7054,4424.1,4424.0,0.5272]
[1757620856592,0.7054,4424.1,4424.0,0.7281]
[1757620858296,0.7054,4424.1,4424.0,0.215]
[1757620858685,0.5082,4423.3,4423.2,0.7242]
[1757620858888,0.7197,4423.3,4423.2,0.7242]
[1757620859284,0.4059,4423.3,4423.2,0.7242]
[1757620860396,0.4059,4423.3,4422.8,0.4713349]
[1757620860397,0.3138,4423.2,4422.8,0.4713349]
[1757620860590,0.4059,4422.9,4422.8,0.8960349]
[1757620860792,0.7197,4422.9,4422.8,0.8960349]
[1757620862394,0.1202,4423.5,4422.8,0.5965349]
[1757620862596,0.7197,4423.4,4423.3,0.7242]
[1757620862796,0.3138,4423.8,4423.4,0.2995]
[1757620862998,0.8399,4424.0,4423.9,0.2125]
[1757620863805,0.8399,4424.0,4423.9,0.512]
[1757620864007,0.8399,4424.0,4423.9,0.2125]
[1757620864803,0.8399,4424.0,4423.9,0.512]
[1757620866590,0.8399,4424.0,4423.6,0.2995]
[1757620867100,0.7197,4423.2,4422.8,0.1718349]
[1757620867306,0.1202,4423.5,4423.0,0.2125]
[1757620867604,0.3138,4423.9,4423.0,0.5459]
[1757620867904,0.7197,4423.9,4423.8,0.2125]
[1757620869298,0.7197,4423.9,4423.8,0.512]
[1757620869604,0.7197,4423.9,4423.8,0.2125]
[1757620871401,0.7197,4423.9,4423.1,0.2995]
[1757620875411,0.7197,4423.9,4423.8,0.2125]
[1757620875909,0.7197,4423.9,4423.8,0.512]
[1757620876304,0.7197,4423.9,4423.8,0.2125]
[1757620877409,0.7197,4423.9,4423.1,0.2995]
[1757620878908,0.1202,4424.0,4423.1,0.2995]
[1757620878909,0.22607,4423.8,4423.1,0.2995]
[1757620879209,0.8399,4423.0,4422.9,0.512]
[1757620879411,0.8399,4423.0,4422.9,0.7242]
[1757620879611,0.7197,4423.0,4422.9,0.7242]
[1757620880510,0.7197,4423.0,4422.8,0.1718349]
[1757620880511,0.8399,4423.0,4422.8,0.1718349]
[1757620883209,0.4059,4423.0,4422.9,0.7242]
[1757620883424,0.228,4423.7,4423.6,0.2125]
[1757620883425,0.4059,4423.7,4423.6,0.2125]
[1757620884018,0.2115,4423.1,4423.0,0.3337]
[1757620884205,0.7197,4423.1,4423.0,0.5459]
[1757620884612,0.7197,4423.1,4423.0,0.8454]
[1757620887115,0.7197,4423.1,4423.0,0.7242]
[1757620887510,0.6997,4422.9,4422.8,0.1718349]
[1757620889513,4.92580001,4422.9,4422.8,0.1718349]
[1757620889719,4.6997,4422.9,4422.8,0.1718349]
[1757620892816,0.1196,4422.0,4421.9,0.5109]
[1757620893114,0.8193,4422.0,4421.9,0.5109]
[1757620893317,0.6997,4422.0,4421.9,0.7179]
[1757620894421,0.8193,4422.0,4421.9,0.7179]
[1757620898011,0.6997,4422.0,4421.9,0.7179]
[1757620901527,0.1196,4422.5,4421.9,0.7179]
[1757620901824,0.6997,4422.5,4422.4,0.7179]
[1757620902020,0.5044,4422.8,4422.7,0.7179]
[1757620902428,0.3006,4423.1,4422.8,0.3086]
[1757620902631,0.5044,4423.1,4423.0,0.4093]
[1757620902835,0.5044,4423.1,4423.0,0.7179]
[1757620903128,0.6997,4423.1,4423.0,0.7179]
[1757620905028,0.6997,4423.1,4422.5,0.1171]
[1757620905228,0.4959,4422.7,4422.6,0.5109]
[1757620905433,0.6997,4422.7,4422.6,0.5109]
[1757620907828,0.6997,4422.7,4422.6,0.7179]
[1757620908030,0.2038,4422.7,4422.6,0.7179]
[1757620908231,0.6997,4422.7,4422.6,0.7179]
[1757620914030,0.6997,4422.7,4422.0,0.1171]
[1757620914338,0.6997,4422.7,4422.1,0.3086]
[1757620920341,0.6932,4422.2,4422.1,0.5125]
[1757620920740,0.6932,4422.2,4422.1,0.7141]
[1757620923442,0.298,4422.9,4422.2,0.3166]
[1757620923638,0.1945,4422.3,4422.2,0.7221]
[1757620923947,0.6932,4422.3,4422.2,0.7221]
[1757620924341,0.6932,4422.3,4421.6,0.3166]
[1757620925457,0.1257,4422.0,4421.1,2.02037408]
[1757620925638,0.1257,4422.0,4421.2,0.4055]
[1757620925840,0.6932,4421.4,4421.3,0.7221]
[1757620926143,0.6932,4421.4,4420.5,2.32035911]
[1757620926339,0.298,4421.3,4420.6,0.3166]
[1757620926538,0.1945,4420.7,4420.6,0.7221]
[1757620926739,0.6932,4420.7,4420.6,0.7221]
[1757620931942,0.3952,4420.7,4420.6,0.7221]
[1757620932148,0.1945,4420.7,4420.6,0.7221]
[1757620932748,0.4925,4420.7,4420.6,0.7221]
[1757620932945,0.6932,4420.7,4420.6,0.7221]
[1757620933345,0.6932,4420.7,4420.6,0.5205]
[1757620933550,0.6932,4420.7,4420.6,0.2039]
[1757620933848,0.6932,4420.7,4420.6,0.5205]
[1757620935351,0.6932,4420.7,4420.3,0.3166]
[1757620935540,0.6932,4420.4,4420.3,0.5205]
[1757620936451,0.6932,4420.4,4419.6,0.3166]
[1757620936655,0.1945,4419.8,4419.7,0.5205]
[1757620936950,0.4925,4419.8,4419.7,0.7221]
[1757620937149,0.1257,4420.5,4419.8,0.3166]
[1757620937346,0.298,4420.4,4419.8,0.3166]
[1757620937546,0.4925,4420.4,4420.3,0.2039]
[1757620937746,0.6932,4420.4,4420.3,0.2039]
[1757620937947,0.6932,4420.4,4420.3,0.5205]
[1757620940476,0.6932,4420.4,4420.3,0.2039]
[1757620941454,0.6932,4420.4,4420.3,0.5205]
[1757620941855,0.6932,4420.4,4420.3,0.7221]
[1757620943952,0.4925,4420.9,4420.8,0.7221]
[1757620944350,0.6932,4420.9,4420.8,0.5205]
[1757620944657,0.6932,4420.9,4420.1,0.3166]
[1757620944860,0.6932,4420.9,4420.0,0.1183]
[1757620944861,0.4925,4420.3,4420.2,0.7221]
[1757620945161,0.6932,4420.3,4420.2,0.7221]
[1757620949754,0.1945,4420.3,4420.2,0.7221]
[1757620950055,0.2962,4420.9,4420.3,0.3232]
[1757620950259,0.92881001,4420.9,4420.8,0.2029]
[1757620950458,0.7026,4420.9,4420.8,0.5261]
[1757620950957,0.7026,4420.9,4420.8,0.7245]
[1757620951258,0.7026,4420.9,4420.5,0.1273]
[1757620951259,0.2962,4421.3,4420.9,0.3232]
[1757620951456,0.7026,4421.3,4421.2,0.7245]
[1757620954364,0.89776905,4421.3,4421.2,0.7245]
[1757620961374,0.19516905,4421.3,4421.2,0.7245]
[1757620961572,0.2962,4421.7,4421.5,0.1273]
[1757620961779,0.69212834,4421.6,4421.5,0.5286]
[1757620962275,0.69212834,4421.6,4421.5,0.8518]
[1757620962580,0.69210086,4421.6,4421.5,0.8518]
[1757620962987,0.19530086,4421.6,4421.5,1.07796999]
[1757620963191,0.4968,4422.4,4422.3,0.4013]
[1757620963385,0.89778574,4422.4,4422.3,0.4013]
[1757620963891,0.89778574,4422.4,4422.3,0.7245]
[1757620964597,0.89778574,4422.4,4421.6,0.3232]
[1757620964898,0.2006,4421.8,4421.7,0.7245]
[1757620965099,0.4968,4421.8,4421.7,0.95064]
[1757620965691,0.4968,4421.8,4421.7,0.7245]
[1757620966099,0.2006,4421.8,4421.7,0.7245]
[1757620966397,0.2962,4422.1,4421.7,0.7245]
[1757620966597,0.2962,4422.4,4421.8,0.3232]
[1757620966795,0.4968,4421.9,4421.8,0.7245]
[1757620967099,0.2962,4422.2,4421.8,0.7245]
[1757620967285,0.2962,4422.4,4421.9,0.3232]
[1757620967490,0.7026,4422.4,4422.3,0.5261]
[1757620968094,0.7026,4422.4,4422.3,0.2029]
[1757620968295,0.7026,4422.4,4422.0,0.3232]
[1757620968497,0.7026,4422.4,4421.7,0.3232]
[1757620971196,0.7026,4422.4,4422.3,0.2029]
[1757620971592,0.7026,4422.4,4421.6,0.3232]
[1757620975706,0.7026,4421.2,4421.1,0.7245]
[1757620977609,0.7026,4421.2,4421.1,0.5261]